[Event "Titled Tuesday Blitz October 25 Late 2022"]
[White "Wiegmann, Sascha"]
[Black "Omariev, Maksim"]
[WhiteFideId "4682041"]
[BlackFideId "4193423"]
[WhiteElo "2294"]
[BlackElo "2409"]
[Result "1/2-1/2"]
[Round "07"]
[TimeControl "180+1"]
[Date "2022.10.26"]
[WhiteClock "0:00:09"]
[BlackClock "0:00:10"]

1. Nf3 {[%clk 0:03:00]}  d5 {[%clk 0:02:59]} 2. g3 {[%clk 0:02:57]}  c6 {[%clk 0:02:59]} 3. Bg2 {[%clk 0:02:57]}  Nf6 {[%clk 0:03:00]} 4. O-O {[%clk 0:02:57]}  Bf5 {[%clk 0:03:01]} 5. d3 {[%clk 0:02:58]}  e6 {[%clk 0:03:02]} 6. Nbd2 {[%clk 0:02:58]}  Be7 {[%clk 0:03:03]} 7. c4 {[%clk 0:02:59]}  h6 {[%clk 0:03:03]} 8. a3 {[%clk 0:02:58]}  Bh7 {[%clk 0:03:03]} 9. b4 {[%clk 0:02:58]}  O-O {[%clk 0:03:04]} 10. Bb2 {[%clk 0:02:58]}  Nbd7 {[%clk 0:03:05]} 11. Ra2 {[%clk 0:02:58]}  a5 {[%clk 0:03:05]} 12. b5 {[%clk 0:02:59]}  cxb5 {[%clk 0:03:05]} 13. cxb5 {[%clk 0:02:59]}  Qb6 {[%clk 0:03:05]} 14. a4 {[%clk 0:02:48]}  Rfc8 {[%clk 0:03:04]} 15. Nb3 {[%clk 0:02:39]}  Bb4 {[%clk 0:03:04]} 16. Qb1 {[%clk 0:02:20]}  Rc7 {[%clk 0:03:03]} 17. Rc1 {[%clk 0:02:19]}  Rac8 {[%clk 0:03:04]} 18. Bd4 {[%clk 0:02:10]}  Qd6 {[%clk 0:03:04]} 19. Rac2 {[%clk 0:02:07]}  e5 {[%clk 0:03:01]} 20. Rxc7 {[%clk 0:01:15]}  Rxc7 {[%clk 0:03:02]} 21. Rxc7 {[%clk 0:01:15]}  Qxc7 {[%clk 0:03:03]} 22. Bb2 {[%clk 0:01:12]}  d4 {[%clk 0:03:03]} 23. Nfd2 {[%clk 0:01:06]}  Nb6 {[%clk 0:02:58]} 24. Qc1 {[%clk 0:00:53]}  Qxc1+ {[%clk 0:02:57]} 25. Bxc1 {[%clk 0:00:54]}  Nfd5 {[%clk 0:02:50]} 26. Bxd5 {[%clk 0:00:33]}  Nxd5 {[%clk 0:02:49]} 27. Nc4 {[%clk 0:00:34]}  Nc3 {[%clk 0:02:41]} 28. Kf1 {[%clk 0:00:33]}  Nxa4 {[%clk 0:02:23]} 29. Nbxa5 {[%clk 0:00:28]}  Bxa5 {[%clk 0:02:02]} 30. Nxa5 {[%clk 0:00:28]}  b6 {[%clk 0:02:03]} 31. Nc4 {[%clk 0:00:28]}  f6 {[%clk 0:02:03]} 32. f4 {[%clk 0:00:25]}  e4 {[%clk 0:01:59]} 33. dxe4 {[%clk 0:00:21]}  Bxe4 {[%clk 0:02:00]} 34. Bd2 {[%clk 0:00:21]}  Bd5 {[%clk 0:01:54]} 35. Nd6 {[%clk 0:00:21]}  g6 {[%clk 0:01:21]} 36. Bb4 {[%clk 0:00:17]}  f5 {[%clk 0:01:20]} 37. Ke1 {[%clk 0:00:16]}  Kg7 {[%clk 0:01:19]} 38. Kd2 {[%clk 0:00:16]}  Be4 {[%clk 0:00:53]} 39. Nc4 {[%clk 0:00:16]}  Kf6 {[%clk 0:00:48]} 40. Bd6 {[%clk 0:00:16]}  Ke6 {[%clk 0:00:46]} 41. Be5 {[%clk 0:00:15]}  Kd5 {[%clk 0:00:46]} 42. Nd6 {[%clk 0:00:15]}  g5 {[%clk 0:00:44]} 43. h4 {[%clk 0:00:14]}  g4 {[%clk 0:00:37]} 44. h5 {[%clk 0:00:13]}  Nc5 {[%clk 0:00:33]} 45. Nf7 {[%clk 0:00:13]}  Bb1 {[%clk 0:00:32]} 46. Nxh6 {[%clk 0:00:13]}  Ke6 {[%clk 0:00:32]} 47. Ng8 {[%clk 0:00:12]}  Ne4+ {[%clk 0:00:30]} 48. Ke1 {[%clk 0:00:10]}  Kf7 {[%clk 0:00:27]} 49. Nh6+ {[%clk 0:00:09]}  Ke6 {[%clk 0:00:26]} 50. Ng8 {[%clk 0:00:09]}  Kf7 {[%clk 0:00:16]} 51. Nh6+ {[%clk 0:00:09]}  Ke6 {[%clk 0:00:10]} 52. Ng8 {[%clk 0:00:09]} 1/2-1/2


[Site "https://www.chess.com"]

[Event "Titled Tuesday Blitz October 25 Late 2022"]
[White "Yanayt, Eugene"]
[Black "Kopacz, Grzegorz"]
[WhiteFideId "2020165"]
[BlackFideId "1109880"]
[WhiteElo "2046"]
[BlackElo "2037"]
[Result "1/2-1/2"]
[Round "07"]
[TimeControl "180+1"]
[Date "2022.10.26"]
[WhiteClock "0:00:10"]
[BlackClock "0:00:03"]

1. d4 {[%clk 0:03:00]}  Nf6 {[%clk 0:02:58]} 2. g3 {[%clk 0:03:00]}  g6 {[%clk 0:02:58]} 3. h4 {[%clk 0:02:58]}  h5 {[%clk 0:02:57]} 4. Bg2 {[%clk 0:02:58]}  Bg7 {[%clk 0:02:58]} 5. e4 {[%clk 0:02:57]}  d6 {[%clk 0:02:57]} 6. f3 {[%clk 0:02:56]}  O-O {[%clk 0:02:53]} 7. Bg5 {[%clk 0:02:55]}  c5 {[%clk 0:02:52]} 8. Ne2 {[%clk 0:02:54]}  cxd4 {[%clk 0:02:50]} 9. Nxd4 {[%clk 0:02:53]}  Nc6 {[%clk 0:02:50]} 10. Nb3 {[%clk 0:02:36]}  Qb6 {[%clk 0:02:45]} 11. N1d2 {[%clk 0:02:28]}  Be6 {[%clk 0:02:41]} 12. Qe2 {[%clk 0:02:24]}  a5 {[%clk 0:02:23]} 13. Be3 {[%clk 0:02:20]}  Qc7 {[%clk 0:02:19]} 14. O-O {[%clk 0:02:16]}  Ne5 {[%clk 0:02:12]} 15. Rfc1 {[%clk 0:02:08]}  Nc4 {[%clk 0:01:56]} 16. Nxc4 {[%clk 0:02:04]}  Qxc4 {[%clk 0:01:50]} 17. Qf2 {[%clk 0:02:02]}  Nd7 {[%clk 0:01:47]} 18. Nd4 {[%clk 0:01:56]}  Rfc8 {[%clk 0:01:30]} 19. Bf1 {[%clk 0:01:48]}  Qc7 {[%clk 0:01:10]} 20. Nxe6 {[%clk 0:01:47]}  fxe6 {[%clk 0:01:09]} 21. c3 {[%clk 0:01:47]}  Ne5 {[%clk 0:01:05]} 22. Rc2 {[%clk 0:01:33]}  Rf8 {[%clk 0:01:04]} 23. Bf4 {[%clk 0:01:20]}  Nxf3+ {[%clk 0:00:38]} 24. Qxf3 {[%clk 0:01:17]}  e5 {[%clk 0:00:39]} 25. Bh3 {[%clk 0:01:15]}  Bh6 {[%clk 0:00:29]} 26. Be6+ {[%clk 0:01:09]}  Kh7 {[%clk 0:00:29]} 27. Rg2 {[%clk 0:01:00]}  exf4 {[%clk 0:00:25]} 28. gxf4 {[%clk 0:00:55]}  Rxf4 {[%clk 0:00:25]} 29. Qg3 {[%clk 0:00:48]}  Rf6 {[%clk 0:00:25]} 30. Bd5 {[%clk 0:00:41]}  Raf8 {[%clk 0:00:20]} 31. Kh1 {[%clk 0:00:29]}  b5 {[%clk 0:00:19]} 32. e5 {[%clk 0:00:28]}  dxe5 {[%clk 0:00:18]} 33. Be4 {[%clk 0:00:29]}  Bf4 {[%clk 0:00:17]} 34. Qf3 {[%clk 0:00:27]}  Rg8 {[%clk 0:00:16]} 35. Qxh5+ {[%clk 0:00:26]}  Bh6 {[%clk 0:00:13]} 36. Rag1 {[%clk 0:00:24]}  Qc4 {[%clk 0:00:10]} 37. Bxg6+ {[%clk 0:00:18]}  Rfxg6 {[%clk 0:00:04]} 38. Rxg6 {[%clk 0:00:17]}  Qe4+ {[%clk 0:00:04]} 39. R6g2 {[%clk 0:00:16]}  Rxg2 {[%clk 0:00:03]} 40. Rxg2 {[%clk 0:00:15]}  Qe1+ {[%clk 0:00:03]} 41. Rg1 {[%clk 0:00:15]}  Qe4+ {[%clk 0:00:03]} 42. Kh2 {[%clk 0:00:12]}  Qf4+ {[%clk 0:00:02]} 43. Rg3 {[%clk 0:00:12]}  Qf2+ {[%clk 0:00:02]} 44. Kh3 {[%clk 0:00:10]}  Qf1+ {[%clk 0:00:03]} 45. Kh2 {[%clk 0:00:09]}  Qf2+ {[%clk 0:00:02]} 46. Kh3 {[%clk 0:00:10]}  Qf1+ {[%clk 0:00:02]} 47. Kg4 {[%clk 0:00:09]}  Qf4+ {[%clk 0:00:03]} 48. Kh3 {[%clk 0:00:10]}  Qf1+ {[%clk 0:00:03]} 1/2-1/2


[Site "https://www.chess.com"]

[Event "Titled Tuesday Blitz October 25 Late 2022"]
[White "Yurtseven, Melih"]
[Black "Senthil Maran K"]
[WhiteFideId "6312160"]
[BlackFideId "25035681"]
[WhiteElo "2218"]
[BlackElo "2109"]
[Result "0-1"]
[Round "07"]
[TimeControl "180+1"]
[Date "2022.10.26"]
[WhiteClock "0:00:02"]
[BlackClock "0:00:16"]

1. d4 {[%clk 0:02:51]}  d5 {[%clk 0:02:58]} 2. c4 {[%clk 0:02:48]}  c6 {[%clk 0:02:58]} 3. Nf3 {[%clk 0:02:43]}  e6 {[%clk 0:02:58]} 4. Qc2 {[%clk 0:02:42]}  dxc4 {[%clk 0:02:57]} 5. Qxc4 {[%clk 0:02:42]}  Nf6 {[%clk 0:02:57]} 6. g3 {[%clk 0:02:39]}  b5 {[%clk 0:02:57]} 7. Qc2 {[%clk 0:02:37]}  Bb7 {[%clk 0:02:56]} 8. Bg2 {[%clk 0:02:37]}  Nbd7 {[%clk 0:02:56]} 9. O-O {[%clk 0:02:37]}  c5 {[%clk 0:02:55]} 10. dxc5 {[%clk 0:02:32]}  Bxc5 {[%clk 0:02:55]} 11. Nc3 {[%clk 0:02:29]}  Rc8 {[%clk 0:02:55]} 12. Qd3 {[%clk 0:02:09]}  b4 {[%clk 0:02:42]} 13. Na4 {[%clk 0:02:05]}  Be7 {[%clk 0:02:41]} 14. Be3 {[%clk 0:01:42]}  O-O {[%clk 0:02:38]} 15. Qb5 {[%clk 0:01:26]}  Bc6 {[%clk 0:02:27]} 16. Qa6 {[%clk 0:01:26]}  Qc7 {[%clk 0:02:09]} 17. Rac1 {[%clk 0:01:13]}  Qb7 {[%clk 0:02:07]} 18. Qxb7 {[%clk 0:00:50]}  Bxb7 {[%clk 0:02:08]} 19. b3 {[%clk 0:00:45]}  a5 {[%clk 0:01:47]} 20. Nd4 {[%clk 0:00:45]}  Nd5 {[%clk 0:01:44]} 21. Rxc8 {[%clk 0:00:32]}  Rxc8 {[%clk 0:01:42]} 22. Rc1 {[%clk 0:00:32]}  Nxe3 {[%clk 0:01:33]} 23. Rxc8+ {[%clk 0:00:31]}  Bxc8 {[%clk 0:01:34]} 24. fxe3 {[%clk 0:00:32]}  Ne5 {[%clk 0:01:11]} 25. h3 {[%clk 0:00:31]}  Ba6 {[%clk 0:00:57]} 26. Kf2 {[%clk 0:00:31]}  Kf8 {[%clk 0:00:56]} 27. Bc6 {[%clk 0:00:20]}  Bd6 {[%clk 0:00:41]} 28. g4 {[%clk 0:00:19]}  g5 {[%clk 0:00:39]} 29. Be4 {[%clk 0:00:15]}  h6 {[%clk 0:00:37]} 30. Bg2 {[%clk 0:00:15]}  Ke7 {[%clk 0:00:36]} 31. Be4 {[%clk 0:00:14]}  Kd8 {[%clk 0:00:35]} 32. Nc6+ {[%clk 0:00:07]}  Nxc6 {[%clk 0:00:35]} 33. Bxc6 {[%clk 0:00:08]}  Kc7 {[%clk 0:00:33]} 34. Be8 {[%clk 0:00:08]}  f6 {[%clk 0:00:33]} 35. Bf7 {[%clk 0:00:07]}  Bc8 {[%clk 0:00:22]} 36. Bg6 {[%clk 0:00:06]}  Bd7 {[%clk 0:00:20]} 37. Bd3 {[%clk 0:00:05]}  Be5 {[%clk 0:00:16]} 38. Nc5 {[%clk 0:00:04]}  Bc8 {[%clk 0:00:16]} 39. Bc4 {[%clk 0:00:04]}  Kd6 {[%clk 0:00:16]} 40. Ne4+ {[%clk 0:00:02]}  Ke7 {[%clk 0:00:16]} 0-1


[Site "https://www.chess.com"]

[Event "Titled Tuesday Blitz October 25 Late 2022"]
[White "Zhigalko, Sergei"]
[Black "Paravyan, David"]
[WhiteFideId "13502956"]
[BlackFideId "4194985"]
[WhiteElo "2662"]
[BlackElo "2555"]
[Result "1-0"]
[Round "07"]
[TimeControl "180+1"]
[Date "2022.10.26"]
[WhiteClock "0:02:14"]
[BlackClock "0:02:15"]

1. e4 {[%clk 0:03:00]}  e5 {[%clk 0:02:59]} 2. Nf3 {[%clk 0:03:01]}  Nf6 {[%clk 0:03:00]} 3. Nxe5 {[%clk 0:02:59]}  d6 {[%clk 0:03:00]} 4. Nf3 {[%clk 0:03:00]}  Nxe4 {[%clk 0:03:00]} 5. Nc3 {[%clk 0:03:00]}  Nxc3 {[%clk 0:03:01]} 6. dxc3 {[%clk 0:03:01]}  Be7 {[%clk 0:03:01]} 7. Be3 {[%clk 0:03:02]}  O-O {[%clk 0:03:02]} 8. Qd2 {[%clk 0:03:03]}  Nd7 {[%clk 0:03:02]} 9. O-O-O {[%clk 0:03:03]}  Nf6 {[%clk 0:03:03]} 10. Bd3 {[%clk 0:03:03]}  Re8 {[%clk 0:03:04]} 11. Kb1 {[%clk 0:02:59]}  d5 {[%clk 0:03:03]} 12. Rhe1 {[%clk 0:02:54]}  Bg4 {[%clk 0:02:57]} 13. h3 {[%clk 0:02:47]}  Bxf3 {[%clk 0:02:57]} 14. gxf3 {[%clk 0:02:48]}  c6 {[%clk 0:02:57]} 15. Rg1 {[%clk 0:02:47]}  Qd7 {[%clk 0:02:46]} 16. Bd4 {[%clk 0:02:35]}  Qd6 {[%clk 0:02:17]} 17. Rxg7+ {[%clk 0:02:20]}  Kxg7 {[%clk 0:02:16]} 18. Rg1+ {[%clk 0:02:14]}  Kh8 {[%clk 0:02:15]} 19. Qh6 {[%clk 0:02:14]} 1-0


[Site "https://www.chess.com"]

[Event "Titled Tuesday Blitz October 25 Late 2022"]
[White "Zilleruelo Irizarry, Diego"]
[Black "Storey, Charles H"]
[WhiteFideId "3101460"]
[BlackFideId "406686"]
[WhiteElo "1998"]
[BlackElo "2252"]
[Result "1-0"]
[Round "07"]
[TimeControl "180+1"]
[Date "2022.10.26"]
[WhiteClock "0:00:17"]
[BlackClock "0:00:05"]

1. e4 {[%clk 0:03:00]}  g6 {[%clk 0:02:58]} 2. d4 {[%clk 0:03:00]}  Bg7 {[%clk 0:02:58]} 3. Nc3 {[%clk 0:03:01]}  c5 {[%clk 0:02:59]} 4. Be3 {[%clk 0:02:59]}  Qa5 {[%clk 0:02:57]} 5. Qd2 {[%clk 0:02:59]}  Nf6 {[%clk 0:02:57]} 6. dxc5 {[%clk 0:02:58]}  Ng4 {[%clk 0:02:49]} 7. Bd4 {[%clk 0:02:56]}  Bxd4 {[%clk 0:02:46]} 8. Qxd4 {[%clk 0:02:55]}  O-O {[%clk 0:02:46]} 9. Nf3 {[%clk 0:02:52]}  Nc6 {[%clk 0:02:45]} 10. Qc4 {[%clk 0:02:48]}  b6 {[%clk 0:02:41]} 11. cxb6 {[%clk 0:02:27]}  Qxb6 {[%clk 0:02:41]} 12. Nd1 {[%clk 0:02:16]}  d6 {[%clk 0:02:13]} 13. h3 {[%clk 0:02:14]}  Nge5 {[%clk 0:02:07]} 14. Qb5 {[%clk 0:01:59]}  Nxf3+ {[%clk 0:02:02]} 15. gxf3 {[%clk 0:01:58]}  Qxb5 {[%clk 0:01:54]} 16. Bxb5 {[%clk 0:01:57]}  Nd4 {[%clk 0:01:54]} 17. Ba4 {[%clk 0:01:33]}  Nxf3+ {[%clk 0:01:52]} 18. Ke2 {[%clk 0:01:33]}  Ng5 {[%clk 0:01:43]} 19. Ke3 {[%clk 0:01:19]}  Rb8 {[%clk 0:01:31]} 20. Bb3 {[%clk 0:01:03]}  Nxh3 {[%clk 0:01:16]} 21. f4 {[%clk 0:00:58]}  e5 {[%clk 0:01:14]} 22. fxe5 {[%clk 0:00:48]}  dxe5 {[%clk 0:01:13]} 23. Nc3 {[%clk 0:00:47]}  Nf4 {[%clk 0:01:13]} 24. Nd5 {[%clk 0:00:47]}  Nxd5+ {[%clk 0:01:08]} 25. exd5 {[%clk 0:00:48]}  f5 {[%clk 0:00:59]} 26. c4 {[%clk 0:00:47]}  Kg7 {[%clk 0:00:47]} 27. Rac1 {[%clk 0:00:46]}  f4+ {[%clk 0:00:35]} 28. Ke4 {[%clk 0:00:46]}  Re8 {[%clk 0:00:36]} 29. c5 {[%clk 0:00:45]}  Bf5+ {[%clk 0:00:36]} 30. Kf3 {[%clk 0:00:46]}  g5 {[%clk 0:00:29]} 31. c6 {[%clk 0:00:46]}  g4+ {[%clk 0:00:30]} 32. Kf2 {[%clk 0:00:47]}  Be4 {[%clk 0:00:25]} 33. Rhe1 {[%clk 0:00:42]}  g3+ {[%clk 0:00:24]} 34. Kg1 {[%clk 0:00:42]}  Rxb3 {[%clk 0:00:20]} 35. axb3 {[%clk 0:00:39]}  Bxd5 {[%clk 0:00:20]} 36. c7 {[%clk 0:00:39]}  f3 {[%clk 0:00:16]} 37. Rxe5 {[%clk 0:00:23]}  f2+ {[%clk 0:00:15]} 38. Kf1 {[%clk 0:00:22]}  Rxe5 {[%clk 0:00:10]} 39. c8=Q {[%clk 0:00:22]}  Re1+ {[%clk 0:00:06]} 40. Rxe1 {[%clk 0:00:21]}  Bg2+ {[%clk 0:00:06]} 41. Ke2 {[%clk 0:00:16]}  fxe1=Q+ {[%clk 0:00:07]} 42. Kxe1 {[%clk 0:00:16]}  Be4 {[%clk 0:00:06]} 43. Qc7+ {[%clk 0:00:16]}  Kf6 {[%clk 0:00:05]} 44. Qxg3 {[%clk 0:00:17]} 1-0


[Site "https://www.chess.com"]

[Event "Titled Tuesday Blitz October 25 Late 2022"]
[White "Zochowski, Kacper"]
[Black "Adla, Diego"]
[WhiteFideId "1125494"]
[BlackFideId "100072"]
[WhiteElo "2292"]
[BlackElo "2377"]
[Result "1/2-1/2"]
[Round "07"]
[TimeControl "180+1"]
[Date "2022.10.26"]
[WhiteClock "0:00:21"]
[BlackClock "0:00:21"]

1. Nf3 {[%clk 0:02:59]}  d5 {[%clk 0:02:54]} 2. c4 {[%clk 0:02:59]}  e6 {[%clk 0:02:54]} 3. g3 {[%clk 0:02:59]}  Nf6 {[%clk 0:02:53]} 4. Bg2 {[%clk 0:03:00]}  Be7 {[%clk 0:02:52]} 5. O-O {[%clk 0:03:01]}  O-O {[%clk 0:02:53]} 6. b3 {[%clk 0:03:01]}  b6 {[%clk 0:02:32]} 7. Bb2 {[%clk 0:02:57]}  Bb7 {[%clk 0:02:32]} 8. e3 {[%clk 0:02:31]}  Nbd7 {[%clk 0:02:27]} 9. Nc3 {[%clk 0:02:29]}  h6 {[%clk 0:02:22]} 10. Rc1 {[%clk 0:02:21]}  Re8 {[%clk 0:02:17]} 11. cxd5 {[%clk 0:02:20]}  exd5 {[%clk 0:02:14]} 12. d4 {[%clk 0:02:19]}  a6 {[%clk 0:02:07]} 13. Re1 {[%clk 0:02:17]}  Rc8 {[%clk 0:02:04]} 14. Na4 {[%clk 0:02:13]}  Bd6 {[%clk 0:02:00]} 15. Nh4 {[%clk 0:01:50]}  Ne4 {[%clk 0:01:55]} 16. Nf5 {[%clk 0:01:47]}  Bf8 {[%clk 0:01:55]} 17. Nc3 {[%clk 0:01:44]}  Ndf6 {[%clk 0:01:52]} 18. Nxe4 {[%clk 0:01:36]}  Nxe4 {[%clk 0:01:51]} 19. Qg4 {[%clk 0:01:35]}  g6 {[%clk 0:01:45]} 20. Nh4 {[%clk 0:01:24]}  Bg7 {[%clk 0:01:40]} 21. Qd1 {[%clk 0:01:22]}  c5 {[%clk 0:01:37]} 22. Nf3 {[%clk 0:01:22]}  b5 {[%clk 0:01:34]} 23. Ne5 {[%clk 0:01:22]}  c4 {[%clk 0:01:33]} 24. Bxe4 {[%clk 0:01:17]}  dxe4 {[%clk 0:01:34]} 25. bxc4 {[%clk 0:01:17]}  Bxe5 {[%clk 0:01:29]} 26. dxe5 {[%clk 0:01:18]}  bxc4 {[%clk 0:01:24]} 27. Qd4 {[%clk 0:01:15]}  Qxd4 {[%clk 0:01:21]} 28. Bxd4 {[%clk 0:01:16]}  Bd5 {[%clk 0:01:20]} 29. Rb1 {[%clk 0:01:09]}  c3 {[%clk 0:01:16]} 30. Rec1 {[%clk 0:01:09]}  Bxa2 {[%clk 0:01:13]} 31. Ra1 {[%clk 0:01:10]}  Be6 {[%clk 0:01:10]} 32. Bxc3 {[%clk 0:01:05]}  Rc6 {[%clk 0:01:04]} 33. Bd4 {[%clk 0:01:05]}  Rec8 {[%clk 0:01:02]} 34. Rxc6 {[%clk 0:01:05]}  Rxc6 {[%clk 0:01:02]} 35. Kg2 {[%clk 0:01:05]}  Kg7 {[%clk 0:00:51]} 36. h3 {[%clk 0:01:06]}  g5 {[%clk 0:00:48]} 37. g4 {[%clk 0:01:05]}  Kg6 {[%clk 0:00:47]} 38. Kg3 {[%clk 0:01:06]}  h5 {[%clk 0:00:44]} 39. gxh5+ {[%clk 0:01:06]}  Kxh5 {[%clk 0:00:44]} 40. Ra5 {[%clk 0:01:06]}  Bc4 {[%clk 0:00:33]} 41. Bc5 {[%clk 0:00:49]}  Bb5 {[%clk 0:00:33]} 42. Bd6 {[%clk 0:00:49]}  Rc1 {[%clk 0:00:32]} 43. Ra2 {[%clk 0:00:47]}  Rg1+ {[%clk 0:00:31]} 44. Kh2 {[%clk 0:00:47]}  Rf1 {[%clk 0:00:30]} 45. Kg2 {[%clk 0:00:47]}  Kg6 {[%clk 0:00:29]} 46. Rb2 {[%clk 0:00:47]}  Rd1 {[%clk 0:00:28]} 47. Rc2 {[%clk 0:00:46]}  f5 {[%clk 0:00:26]} 48. Rc8 {[%clk 0:00:35]}  f4 {[%clk 0:00:26]} 49. Rg8+ {[%clk 0:00:34]}  Kf5 {[%clk 0:00:23]} 50. Rf8+ {[%clk 0:00:34]}  Ke6 {[%clk 0:00:23]} 51. exf4 {[%clk 0:00:34]}  gxf4 {[%clk 0:00:20]} 52. Rxf4 {[%clk 0:00:35]}  a5 {[%clk 0:00:18]} 53. Rf6+ {[%clk 0:00:34]}  Kd5 {[%clk 0:00:19]} 54. Bb8 {[%clk 0:00:33]}  Be2 {[%clk 0:00:19]} 55. Rd6+ {[%clk 0:00:32]}  Kc5 {[%clk 0:00:18]} 56. Ba7+ {[%clk 0:00:31]}  Kb5 {[%clk 0:00:17]} 57. Rxd1 {[%clk 0:00:17]}  Bxd1 {[%clk 0:00:17]} 58. e6 {[%clk 0:00:18]}  Kc6 {[%clk 0:00:17]} 59. e7 {[%clk 0:00:17]}  Kd7 {[%clk 0:00:17]} 60. Bc5 {[%clk 0:00:16]}  a4 {[%clk 0:00:16]} 61. Kg3 {[%clk 0:00:16]}  Bh5 {[%clk 0:00:14]} 62. Kf4 {[%clk 0:00:17]}  Bg6 {[%clk 0:00:14]} 63. Ba3 {[%clk 0:00:17]}  Ke6 {[%clk 0:00:13]} 64. Kg5 {[%clk 0:00:17]}  Be8 {[%clk 0:00:13]} 65. h4 {[%clk 0:00:18]}  Kf7 {[%clk 0:00:13]} 66. Kf4 {[%clk 0:00:18]}  Bc6 {[%clk 0:00:13]} 67. Kg5 {[%clk 0:00:18]}  Kg7 {[%clk 0:00:13]} 68. h5 {[%clk 0:00:19]}  Kh7 {[%clk 0:00:13]} 69. h6 {[%clk 0:00:19]}  Be8 {[%clk 0:00:12]} 70. Bb4 {[%clk 0:00:18]}  Bd7 {[%clk 0:00:12]} 71. Kf6 {[%clk 0:00:18]}  Be8 {[%clk 0:00:13]} 72. Kg5 {[%clk 0:00:17]}  Bd7 {[%clk 0:00:13]} 73. Ba3 {[%clk 0:00:17]}  Be8 {[%clk 0:00:13]} 74. Bc1 {[%clk 0:00:18]}  Bd7 {[%clk 0:00:12]} 75. Kf6 {[%clk 0:00:18]}  Be8 {[%clk 0:00:12]} 76. Ke5 {[%clk 0:00:18]}  a3 {[%clk 0:00:11]} 77. Bxa3 {[%clk 0:00:17]}  Kxh6 {[%clk 0:00:11]} 78. Kxe4 {[%clk 0:00:15]}  Kg6 {[%clk 0:00:12]} 79. Ke5 {[%clk 0:00:16]}  Kf7 {[%clk 0:00:12]} 80. f4 {[%clk 0:00:15]}  Ba4 {[%clk 0:00:13]} 81. f5 {[%clk 0:00:16]}  Be8 {[%clk 0:00:14]} 82. f6 {[%clk 0:00:15]}  Ba4 {[%clk 0:00:14]} 83. Bb2 {[%clk 0:00:16]}  Be8 {[%clk 0:00:15]} 84. Kd6 {[%clk 0:00:16]}  Ba4 {[%clk 0:00:16]} 85. Kc7 {[%clk 0:00:17]}  Be8 {[%clk 0:00:16]} 86. Kd8 {[%clk 0:00:18]}  Ba4 {[%clk 0:00:17]} 87. e8=Q+ {[%clk 0:00:17]}  Bxe8 {[%clk 0:00:17]} 88. Kc7 {[%clk 0:00:18]}  Ba4 {[%clk 0:00:18]} 89. Ba3 {[%clk 0:00:18]}  Be8 {[%clk 0:00:18]} 90. Bb4 {[%clk 0:00:19]}  Ba4 {[%clk 0:00:19]} 91. Ba5 {[%clk 0:00:19]}  Be8 {[%clk 0:00:20]} 92. Bb4 {[%clk 0:00:20]}  Ba4 {[%clk 0:00:20]} 93. Ba5 {[%clk 0:00:21]}  Be8 {[%clk 0:00:21]} 94. Bb4 {[%clk 0:00:21]} 1/2-1/2


[Site "https://www.chess.com"]

[Event "Titled Tuesday Blitz October 25 Late 2022"]
[White "Adla, Diego"]
[Black "Papp, Petra"]
[WhiteFideId "100072"]
[BlackFideId "739049"]
[WhiteElo "2377"]
[BlackElo "2259"]
[Result "1-0"]
[Round "08"]
[TimeControl "180+1"]
[Date "2022.10.26"]
[WhiteClock "0:00:20"]
[BlackClock "0:00:03"]

1. Nf3 {[%clk 0:03:00]}  d5 {[%clk 0:02:55]} 2. d4 {[%clk 0:03:00]}  Nf6 {[%clk 0:02:54]} 3. c4 {[%clk 0:02:59]}  c6 {[%clk 0:02:53]} 4. cxd5 {[%clk 0:02:57]}  cxd5 {[%clk 0:02:53]} 5. Nc3 {[%clk 0:02:57]}  Nc6 {[%clk 0:02:53]} 6. Bf4 {[%clk 0:02:56]}  a6 {[%clk 0:02:53]} 7. Qb3 {[%clk 0:02:53]}  Na5 {[%clk 0:02:46]} 8. Qa4+ {[%clk 0:02:47]}  b5 {[%clk 0:02:40]} 9. Qc2 {[%clk 0:02:47]}  e6 {[%clk 0:02:29]} 10. e3 {[%clk 0:02:47]}  Bd6 {[%clk 0:02:28]} 11. Bxd6 {[%clk 0:02:43]}  Qxd6 {[%clk 0:02:27]} 12. Bd3 {[%clk 0:02:43]}  O-O {[%clk 0:02:27]} 13. O-O {[%clk 0:02:41]}  Bd7 {[%clk 0:02:22]} 14. Rfc1 {[%clk 0:02:40]}  b4 {[%clk 0:02:17]} 15. Na4 {[%clk 0:02:36]}  Rfc8 {[%clk 0:02:02]} 16. Qd1 {[%clk 0:02:31]}  Nc4 {[%clk 0:01:54]} 17. Rab1 {[%clk 0:02:20]}  Ne4 {[%clk 0:00:50]} 18. h3 {[%clk 0:01:54]}  Bb5 {[%clk 0:00:41]} 19. Bxe4 {[%clk 0:01:25]}  dxe4 {[%clk 0:00:40]} 20. Nh2 {[%clk 0:01:26]}  Bxa4 {[%clk 0:00:29]} 21. Qxa4 {[%clk 0:01:25]}  f5 {[%clk 0:00:26]} 22. Nf1 {[%clk 0:01:22]}  a5 {[%clk 0:00:25]} 23. a3 {[%clk 0:01:06]}  Rab8 {[%clk 0:00:20]} 24. Rc2 {[%clk 0:00:54]}  Qd5 {[%clk 0:00:14]} 25. Rbc1 {[%clk 0:00:52]}  Nb6 {[%clk 0:00:13]} 26. Rxc8+ {[%clk 0:00:47]}  Rxc8 {[%clk 0:00:09]} 27. Rxc8+ {[%clk 0:00:47]}  Kf7 {[%clk 0:00:07]} 28. Qe8+ {[%clk 0:00:47]}  Kf6 {[%clk 0:00:07]} 29. Rd8 {[%clk 0:00:38]}  Qc4 {[%clk 0:00:05]} 30. axb4 {[%clk 0:00:32]}  axb4 {[%clk 0:00:04]} 31. Ng3 {[%clk 0:00:32]}  Nd5 {[%clk 0:00:03]} 32. Rd6 {[%clk 0:00:21]}  Ne7 {[%clk 0:00:03]} 33. Qf8+ {[%clk 0:00:20]} 1-0


[Site "https://www.chess.com"]

[Event "Titled Tuesday Blitz October 25 Late 2022"]
[White "Arabidze, Meri"]
[Black "Boruchovsky, Avital"]
[WhiteFideId "13604040"]
[BlackFideId "2800055"]
[WhiteElo "2403"]
[BlackElo "2466"]
[Result "1-0"]
[Round "08"]
[TimeControl "180+1"]
[Date "2022.10.26"]
[WhiteClock "0:01:02"]
[BlackClock "0:00:12"]

1. d4 {[%clk 0:03:00]}  Nf6 {[%clk 0:02:57]} 2. Nf3 {[%clk 0:03:01]}  c5 {[%clk 0:02:57]} 3. d5 {[%clk 0:02:59]}  b5 {[%clk 0:02:56]} 4. Bg5 {[%clk 0:02:57]}  Ne4 {[%clk 0:02:52]} 5. Bf4 {[%clk 0:02:55]}  a6 {[%clk 0:02:41]} 6. e3 {[%clk 0:02:54]}  Bb7 {[%clk 0:02:39]} 7. a4 {[%clk 0:02:51]}  Nf6 {[%clk 0:02:34]} 8. c4 {[%clk 0:02:47]}  d6 {[%clk 0:02:27]} 9. axb5 {[%clk 0:02:40]}  axb5 {[%clk 0:02:27]} 10. Rxa8 {[%clk 0:02:41]}  Bxa8 {[%clk 0:02:27]} 11. Nc3 {[%clk 0:02:42]}  Qa5 {[%clk 0:02:22]} 12. Bd3 {[%clk 0:02:23]}  b4 {[%clk 0:01:56]} 13. Nb5 {[%clk 0:02:22]}  Bb7 {[%clk 0:01:42]} 14. O-O {[%clk 0:02:21]}  Qb6 {[%clk 0:01:41]} 15. Qa4 {[%clk 0:02:14]}  Nfd7 {[%clk 0:01:30]} 16. Ra1 {[%clk 0:02:11]}  Na6 {[%clk 0:01:24]} 17. Bf5 {[%clk 0:02:00]}  Qd8 {[%clk 0:00:50]} 18. Bg5 {[%clk 0:01:45]}  f6 {[%clk 0:00:30]} 19. Bf4 {[%clk 0:01:44]}  g6 {[%clk 0:00:29]} 20. Be6 {[%clk 0:01:43]}  Qc8 {[%clk 0:00:24]} 21. h4 {[%clk 0:01:28]}  h5 {[%clk 0:00:17]} 22. Qc2 {[%clk 0:01:23]}  f5 {[%clk 0:00:17]} 23. Ng5 {[%clk 0:01:18]}  Qb8 {[%clk 0:00:16]} 24. Bf7+ {[%clk 0:01:13]}  Kd8 {[%clk 0:00:16]} 25. Bxg6 {[%clk 0:01:11]}  Rg8 {[%clk 0:00:13]} 26. Bxf5 {[%clk 0:01:08]}  Nf6 {[%clk 0:00:13]} 27. Ne6+ {[%clk 0:01:05]}  Ke8 {[%clk 0:00:11]} 28. Bg6+ {[%clk 0:01:02]}  Kd7 {[%clk 0:00:12]} 29. Qf5 {[%clk 0:01:02]} 1-0


[Site "https://www.chess.com"]